[Event "FIDE Womens World Cup 2021"]
[Site "Sochi"]
[Date "2021.07.17"]
[Round "2.6"]
[White "Sebag, Marie"]
[Black "Skripchenko, Almira"]
[Result "1-0"]
[ECO "C41"]
[WhiteElo "2438"]
[BlackElo "2411"]
[Annotator "NA"]
[PlyCount "107"]
[EventDate "2021.07.12"]
[EventType "k.o."]
[EventCountry "RUS"]
[SourceTitle "playchess.com"]
[Source "ChessBase"]
[SourceQuality "1"]
[TimeControl "600+10"]

1. e4 {[%emt 0:00:01]} d6 {[%emt 0:00:08]} 2. d4 {[%emt 0:00:03]} Nf6 {[%emt 0:00:01]} 3. Nc3 {[%emt 0:00:01]} e5 {[%emt 0:00:02]} 4. Nf3 {[%emt 0:00:02]} Nbd7 {[%emt 0:00:01]} 5. Bc4 {[%emt 0:00:02]} Be7 {[%emt 0:00:01]} 6. O-O {[%emt 0:00:04]} O-O {[%emt 0:00:02]} 7. a4 {[%emt 0:00:03]} a6 {[%emt 0:00:03]} 8. a5 {[%emt 0:00:01]} h6 {[%emt 0:00:02]} 9. h3 {[%emt 0:00:02]} exd4 {[%emt 0:00:06]} 10. Nxd4 {[%emt 0:00:02]} Ne5 {[%emt 0:00:02]} 11. Ba2 {[%emt 0:00:04]} c5 {[%emt 0:00:05]} 12. Nde2 {[%emt 0:00:01]} Be6 {[%emt 0:00:02]} 13. Nf4 {[%emt 0:00:05]} Bxa2 {[%emt 0:00:03]} 14. Rxa2 {[%emt 0:00:02]} Nc6 {[%emt 0:00:03]} 15. Nfd5 {[%emt 0:00:04]} Re8 {[%emt 0:00:13]} 16. Bf4 {[%emt 0:00:03]} Bf8 {[%emt 0:00:18]} 17. Nxf6+ {[%emt 0:01:11]} Qxf6 {[%emt 0:00:03]} 18. Nd5 {[%emt 0:00:06]} Qe6 {[%emt 0:01:55]} 19. Ra4 {[%emt 0:01:31]} Rac8 {[%emt 0:01:00]} 20. c3 {[%emt 0:00:16]} Ne7 {[%emt 0:00:26]} 21. Nb6 {[%emt 0:02:57]} Rcd8 {[%emt 0:00:04]} 22. Qf3 {[%emt 0:00:18]} Nc8 {[%emt 0:00:49]} 23. Nd5 {[%emt 0:01:00]} Ne7 {[%emt 0:00:13]} 24. Nc7 {[%emt 0:00:53]} Qd7 {[%emt 0:04:07]} 25. Nxe8 {[%emt 0:00:03]} Qxa4 {[%emt 0:00:03]} 26. Nxd6 {[%emt 0:00:05]} Qb3 {[%emt 0:00:01]} 27. e5 {[%emt 0:01:45]} Ng6 {[%emt 0:00:13]} 28. Bg3 {[%emt 0:01:30]} Nxe5 {[%emt 0:02:12]} 29. Qxb7 {[%emt 0:00:12]} Qxb7 {[%emt 0:01:23]} 30. Nxb7 {[%emt 0:00:02]} Rb8 {[%emt 0:00:01]} 31. Bxe5 {[%emt 0:00:05]} Rxb7 {[%emt 0:00:02]} 32. c4 {[%emt 0:00:04]} Rb4 {[%emt 0:00:13]} 33. Rd1 {[%emt 0:01:20]} f6 {[%emt 0:00:01]} 34. Bc3 {[%emt 0:00:14]} Rxc4 {[%emt 0:00:01]} 35. f3 {[%emt 0:00:08]} Ra4 {[%emt 0:00:34]} 36. Rd8 {[%emt 0:00:22]} Kf7 {[%emt 0:00:48]} 37. Ra8 {[%emt 0:00:02]} Bd6 {[%emt 0:00:31]} 38. Kf2 {[%emt 0:00:33]} Be5 {[%emt 0:00:06]} 39. Bxe5 {[%emt 0:00:57]} fxe5 {[%emt 0:00:07]} 40. Ra7+ {[%emt 0:00:01]} Kf8 {[%emt 0:00:25]} 41. Rxa6 {[%emt 0:00:07]} Rb4 {[%emt 0:00:09]} 42. Rb6 {[%emt 0:00:06]} Ra4 {[%emt 0:00:15]} 43. a6 {[%emt 0:00:01]} Kf7 {[%emt 0:00:11]} 44. Ke3 {[%emt 0:00:02]} c4 {[%emt 0:00:10]} 45. g4 {[%emt 0:00:18]} Ra2 {[%emt 0:00:10]} 46. Ke4 {[%emt 0:00:08]} Ra5 {[%emt 0:00:05]} 47. h4 {[%emt 0:00:07]} Kg8 {[%emt 0:00:18]} 48. Kf5 {[%emt 0:00:13]} Kh7 {[%emt 0:00:04]} 49. h5 {[%emt 0:00:11]} Rc5 {[%emt 0:00:07]} 50. a7 {[%emt 0:00:08]} Ra5 {[%emt 0:00:04]} 51. Rb7 {[%emt 0:00:02]} Ra6 {[%emt 0:00:24]} 52. Kxe5 {[%emt 0:00:03]} Ra4 {[%emt 0:00:11]} 53. Kd4 {[%emt 0:00:04]} Ra6 {[%emt 0:00:10]} 54. Kxc4 {[%emt 0:00:05]} 1-0

[Event "FIDE Womens World Cup 2021"]
[Site "Sochi"]
[Date "2021.07.17"]
[Round "2.6"]
[White "Matnadze, Ana"]
[Black "Badelka, Olga"]
[Result "1/2-1/2"]
[ECO "D38"]
[WhiteElo "2421"]
[BlackElo "2418"]
[Annotator "NA"]
[PlyCount "124"]
[EventDate "2021.07.12"]
[EventType "k.o."]
[EventCountry "RUS"]
[SourceTitle "playchess.com"]
[Source "ChessBase"]
[SourceQuality "1"]
[TimeControl "600+10"]

1. d4 {[%emt 0:00:03]} Nf6 {[%emt 0:00:00]} 2. Nf3 {[%emt 0:00:03]} e6 {[%emt 0:00:01]} 3. c4 {[%emt 0:00:03]} d5 {[%emt 0:00:01]} 4. Nc3 {[%emt 0:00:03]} Bb4 {[%emt 0:00:05]} 5. g3 {[%emt 0:00:14]} O-O {[%emt 0:00:11]} 6. Bg2 {[%emt 0:00:01]} dxc4 {[%emt 0:00:10]} 7. O-O {[%emt 0:00:08]} Nc6 {[%emt 0:01:09]} 8. a3 {[%emt 0:00:05]} Bxc3 {[%emt 0:00:06]} 9. bxc3 {[%emt 0:00:01]} Rb8 {[%emt 0:00:23]} 10. a4 {[%emt 0:00:29]} a6 {[%emt 0:00:18]} 11. Nd2 {[%emt 0:00:05]} Na5 {[%emt 0:00:16]} 12. e4 {[%emt 0:00:38]} Bd7 {[%emt 0:00:37]} 13. e5 {[%emt 0:01:50]} Nd5 {[%emt 0:00:08]} 14. Ne4 {[%emt 0:00:01]} Nb3 {[%emt 0:00:23]} 15. Bg5 {[%emt 0:00:41]} Qe8 {[%emt 0:00:57]} 16. Ra2 {[%emt 0:02:01]} Kh8 {[%emt 0:00:04]} 17. a5 {[%emt 0:00:15]} f5 {[%emt 0:01:39]} 18. exf6 {[%emt 0:00:10]} gxf6 {[%emt 0:00:01]} 19. Bh6 {[%emt 0:00:57]} Rg8 {[%emt 0:00:02]} 20. Qf3 {[%emt 0:00:52]} Qg6 {[%emt 0:00:14]} 21. Bf4 {[%emt 0:00:27]} Bc6 {[%emt 0:00:35]} 22. Re1 {[%emt 0:00:02]} Rbe8 {[%emt 0:00:26]} 23. h4 {[%emt 0:00:33]} Qg4 {[%emt 0:01:21]} 24. Qxg4 {[%emt 0:00:02]} Rxg4 {[%emt 0:00:01]} 25. Bf3 {[%emt 0:01:02]} Rgg8 {[%emt 0:00:41]} 26. Bh6 {[%emt 0:00:42]} Nxc3 {[%emt 0:00:54]} 27. Nxc3 {[%emt 0:00:22]} Bxf3 {[%emt 0:00:01]} 28. Ra4 {[%emt 0:00:19]} Bd5 {[%emt 0:00:48]} 29. Be3 {[%emt 0:00:01]} Rg4 {[%emt 0:00:53]} 30. Rd1 {[%emt 0:00:36]} Bf3 {[%emt 0:00:15]} 31. Rb1 {[%emt 0:01:05]} Nxd4 {[%emt 0:00:13]} 32. Kf1 {[%emt 0:00:04]} Nb3 {[%emt 0:00:31]} 33. Ke1 {[%emt 0:00:06]} Rd8 {[%emt 0:00:24]} 34. Ne2 {[%emt 0:00:20]} Bc6 {[%emt 0:00:42]} 35. Rb4 {[%emt 0:00:08]} Nxa5 {[%emt 0:00:11]} 36. Nf4 {[%emt 0:00:25]} e5 {[%emt 0:00:20]} 37. Ne2 {[%emt 0:00:33]} b5 {[%emt 0:00:08]} 38. Ra1 {[%emt 0:00:06]} Nb3 {[%emt 0:00:29]} 39. Rxa6 {[%emt 0:00:01]} Rd6 {[%emt 0:00:15]} 40. Ra7 {[%emt 0:00:21]} Nd4 {[%emt 0:00:06]} 41. Nxd4 {[%emt 0:00:17]} exd4 {[%emt 0:00:00]} 42. Bh6 {[%emt 0:00:13]} Re4+ {[%emt 0:00:18]} 43. Kd1 {[%emt 0:00:12]} Re8 {[%emt 0:00:08]} 44. Rxc7 {[%emt 0:00:04]} d3 {[%emt 0:00:16]} 45. Bd2 {[%emt 0:00:18]} Ra8 {[%emt 0:00:12]} 46. Bc3 {[%emt 0:00:04]} Bf3+ {[%emt 0:00:10]} 47. Kd2 {[%emt 0:00:03]} Bc6 {[%emt 0:00:29]} 48. Rb2 {[%emt 0:00:11]} Re8 {[%emt 0:00:03]} 49. Kc1 {[%emt 0:00:24]} Kg8 {[%emt 0:00:13]} 50. Ra2 {[%emt 0:00:04]} Re2 {[%emt 0:00:18]} 51. Raa7 {[%emt 0:00:24]} d2+ {[%emt 0:00:20]} 52. Bxd2 {[%emt 0:00:01]} Rdxd2 {[%emt 0:00:09]} 53. Rxc6 {[%emt 0:00:21]} Rd8 {[%emt 0:00:14]} 54. Rcc7 {[%emt 0:00:10]} Rxf2 {[%emt 0:00:08]} 55. Rg7+ {[%emt 0:00:03]} Kh8 {[%emt 0:00:09]} 56. Rxh7+ {[%emt 0:00:02]} Kg8 {[%emt 0:00:00]} 57. Rhg7+ Kh8 58. Rh7+ Kg8 59. Rag7+ Kf8 60. Rf7+ {[%emt 0:00:53]} Kg8 {[%emt 0:00:02]} 61. Rfg7+ {[%emt 0:00:07]} Kf8 {[%emt 0:00:00]} 62. Rf7+ {[%emt 0:00:18]} Kg8 {[%emt 0:00:01]} 1/2-1/2

[Event "FIDE Womens World Cup 2021"]
[Site "Sochi"]
[Date "2021.07.17"]
[Round "2.6"]
[White "Salimova, Nurgyul"]
[Black "Paehtz, Elisabeth"]
[Result "1/2-1/2"]
[ECO "E63"]
[WhiteElo "2395"]
[BlackElo "2466"]
[Annotator "ChessBase"]
[PlyCount "107"]
[EventDate "2021.07.12"]
[EventType "k.o."]
[EventCountry "RUS"]
[SourceTitle "playchess.com"]
[Source "ChessBase"]
[SourceQuality "1"]
[TimeControl "600+10"]

1. d4 {[%emt 0:00:02]} Nf6 {[%emt 0:00:00]} 2. Nf3 {[%emt 0:00:01]} g6 {[%emt 0:00:02]} 3. c4 {[%emt 0:00:19]} Bg7 {[%emt 0:00:01]} 4. g3 {[%emt 0:00:11]} O-O {[%emt 0:00:02]} 5. Bg2 {[%emt 0:00:04]} d6 {[%emt 0:00:01]} 6. O-O {[%emt 0:00:11]} Nc6 {[%emt 0:00:05]} 7. Nc3 {[%emt 0:00:06]} a6 {[%emt 0:00:02]} 8. b3 {[%emt 0:00:22]} Rb8 {[%emt 0:00:04]} 9. d5 {[%emt 0:00:57]} Na5 {[%emt 0:00:35]} 10. Bg5 {[%emt 0:00:08]} c5 {[%emt 0:00:50]} 11. dxc6 {[%emt 0:00:04]} Nxc6 {[%emt 0:00:01]} 12. Rc1 {[%emt 0:00:18]} h6 {[%emt 0:00:16]} 13. Be3 {[%emt 0:01:30]} e5 {[%emt 0:01:17]} 14. h3 {[%emt 0:01:07]} Ne7 {[%emt 0:00:30]} 15. g4 {[%emt 0:00:44]} h5 {[%emt 0:00:40]} 16. g5 {[%emt 0:00:04]} Ne8 {[%emt 0:00:02]} 17. Nd5 {[%emt 0:02:22]} Nxd5 {[%emt 0:00:03]} 18. Qxd5 {[%emt 0:00:07]} Be6 {[%emt 0:00:28]} 19. Qd2 {[%emt 0:00:42]} b5 {[%emt 0:00:24]} 20. Rfd1 {[%emt 0:00:38]} bxc4 {[%emt 0:00:49]} 21. bxc4 {[%emt 0:00:01]} Qc8 {[%emt 0:00:04]} 22. Kh2 {[%emt 0:00:17]} Qc7 {[%emt 0:00:29]} 23. Ne1 {[%emt 0:00:34]} Qc8 {[%emt 0:02:13]} 24. Ba7 {[%emt 0:00:53]} Rb7 {[%emt 0:00:24]} 25. Bxb7 {[%emt 0:00:12]} Qxb7 {[%emt 0:00:01]} 26. Qe3 {[%emt 0:00:08]} f6 {[%emt 0:00:15]} 27. Nf3 {[%emt 0:00:53]} Qc8 {[%emt 0:00:26]} 28. h4 {[%emt 0:00:36]} fxg5 {[%emt 0:00:18]} 29. Nxg5 {[%emt 0:00:45]} Rf4 {[%emt 0:00:09]} 30. Nxe6 {[%emt 0:00:34]} Qxe6 {[%emt 0:00:01]} 31. Qh3 {[%emt 0:00:04]} Qe7 {[%emt 0:00:01]} 32. Qe3 {[%emt 0:00:21]} Rxh4+ {[%emt 0:00:04]} 33. Kg2 {[%emt 0:00:03]} Rg4+ {[%emt 0:00:07]} 34. Kf1 {[%emt 0:00:04]} Qh4 {[%emt 0:00:25]} 35. Ke1 {[%emt 0:00:18]} Kh7 {[%emt 0:00:02]} 36. Qf3 {[%emt 0:00:18]} Bh6 {[%emt 0:00:00]} 37. e3 {[%emt 0:00:10]} Qe7 {[%emt 0:00:00]} 38. Bb6 {[%emt 0:00:10]} Qe6 {[%emt 0:00:13]} 39. Qd5 {[%emt 0:00:09]} Qf5 {[%emt 0:00:04]} 40. Qb7+ {[%emt 0:00:03]} Bg7 {[%emt 0:00:13]} 41. Ke2 {[%emt 0:00:12]} e4 {[%emt 0:00:08]} 42. Rf1 {[%emt 0:00:08]} Kh6 {[%emt 0:01:17]} 43. Qd5 {[%emt 0:00:10]} Qf3+ {[%emt 0:00:00]} 44. Ke1 {[%emt 0:00:12]} h4 {[%emt 0:00:22]} 45. Qe6 {[%emt 0:00:06]} Nf6 {[%emt 0:00:30]} 46. Qxd6 {[%emt 0:00:02]} Nh5 {[%emt 0:00:20]} 47. Bd4 {[%emt 0:00:16]} Bf8 {[%emt 0:00:36]} 48. Qe5 {[%emt 0:00:16]} Bb4+ {[%emt 0:01:01]} 49. Bc3 {[%emt 0:00:01]} Ng3 {[%emt 0:00:49]} 50. Qh8+ {[%emt 0:00:19]} Kg5 {[%emt 0:00:01]} 51. Qd8+ {[%emt 0:00:07]} Kh6 {[%emt 0:00:12]} 52. Qh8+ {[%emt 0:00:02]} Kg5 {[%emt 0:00:01]} 53. Qd8+ {[%emt 0:00:04]} Kh6 {[%emt 0:00:10]} 54. Qh8+ {[%emt 0:00:25]} 1/2-1/2

[Event "FIDE Womens World Cup 2021"]
[Site "Sochi"]
[Date "2021.07.17"]
[Round "2.7"]
[White "Paehtz, Elisabeth"]
[Black "Salimova, Nurgyul"]
[Result "1-0"]
[ECO "A06"]
[WhiteElo "2466"]
[BlackElo "2395"]
[Annotator "ChessBase"]
[PlyCount "133"]
[EventDate "2021.07.12"]
[EventType "k.o."]
[EventCountry "RUS"]
[SourceTitle "playchess.com"]
[Source "ChessBase"]
[SourceQuality "1"]
[TimeControl "300+3"]

1. Nf3 {[%emt 0:00:01]} d5 {[%emt 0:00:05]} 2. e3 {[%emt 0:00:01]} Nf6 {[%emt 0:00:04]} 3. c4 {[%emt 0:00:01]} e6 {[%emt 0:00:10]} 4. Nc3 {[%emt 0:00:01]} Nbd7 {[%emt 0:00:13]} 5. b3 {[%emt 0:00:08]} Bd6 {[%emt 0:00:31]} 6. g3 {[%emt 0:00:17]} O-O {[%emt 0:00:14]} 7. Bg2 {[%emt 0:00:07]} c6 {[%emt 0:00:12]} 8. d4 {[%emt 0:00:35]} b6 {[%emt 0:00:18]} 9. O-O {[%emt 0:00:07]} Ba6 {[%emt 0:00:02]} 10. Re1 {[%emt 0:00:10]} dxc4 {[%emt 0:00:37]} 11. bxc4 {[%emt 0:00:07]} Bxc4 {[%emt 0:00:16]} 12. Nd2 {[%emt 0:00:10]} Ba6 {[%emt 0:00:06]} 13. Qa4 {[%emt 0:00:38]} Bb7 {[%emt 0:00:06]} 14. Bxc6 {[%emt 0:00:32]} Bxc6 {[%emt 0:00:01]} 15. Qxc6 {[%emt 0:00:02]} Bb4 {[%emt 0:00:06]} 16. Qc4 {[%emt 0:00:01]} Qe7 {[%emt 0:00:10]} 17. Bb2 {[%emt 0:00:11]} Rac8 {[%emt 0:00:01]} 18. Qb3 {[%emt 0:00:02]} Rfd8 {[%emt 0:00:35]} 19. a3 {[%emt 0:00:27]} Bd6 {[%emt 0:00:20]} 20. Nc4 {[%emt 0:00:02]} Bb8 {[%emt 0:00:05]} 21. a4 {[%emt 0:00:02]} Nd5 {[%emt 0:00:27]} 22. Ba3 {[%emt 0:00:26]} Qg5 {[%emt 0:00:30]} 23. Ne4 {[%emt 0:00:22]} Qg6 {[%emt 0:00:06]} 24. Ncd6 {[%emt 0:00:21]} Bxd6 {[%emt 0:00:04]} 25. Nxd6 {[%emt 0:00:02]} Rc3 {[%emt 0:00:14]} 26. Qb5 {[%emt 0:00:06]} Nf8 {[%emt 0:00:25]} 27. e4 {[%emt 0:00:14]} Nf6 {[%emt 0:00:12]} 28. Bb4 {[%emt 0:00:34]} Rc2 {[%emt 0:00:03]} 29. Qd3 {[%emt 0:00:07]} Rc6 {[%emt 0:00:06]} 30. Qe2 {[%emt 0:00:24]} Ne8 {[%emt 0:00:10]} 31. Nb5 {[%emt 0:00:05]} a6 {[%emt 0:00:00]} 32. d5 {[%emt 0:00:04]} Rcc8 {[%emt 0:00:05]} 33. Nc3 {[%emt 0:00:07]} a5 {[%emt 0:00:02]} 34. Bxf8 {[%emt 0:00:03]} Kxf8 {[%emt 0:00:03]} 35. Nb5 {[%emt 0:00:01]} Kg8 {[%emt 0:00:03]} 36. Rad1 {[%emt 0:00:02]} h5 {[%emt 0:00:03]} 37. d6 {[%emt 0:00:01]} Rc5 {[%emt 0:00:03]} 38. e5 {[%emt 0:00:03]} h4 {[%emt 0:00:03]} 39. Qf3 {[%emt 0:00:03]} hxg3 {[%emt 0:00:04]} 40. hxg3 {[%emt 0:00:02]} f6 {[%emt 0:00:02]} 41. Qb7 {[%emt 0:00:06]} fxe5 {[%emt 0:00:04]} 42. Qe7 {[%emt 0:00:02]} Qf6 {[%emt 0:00:01]} 43. Qb7 {[%emt 0:00:07]} Rc2 {[%emt 0:00:01]} 44. Rf1 {[%emt 0:00:02]} Rb2 {[%emt 0:00:07]} 45. d7 {[%emt 0:00:01]} Qf7 {[%emt 0:00:03]} 46. dxe8=Q+ {[%emt 0:00:03]} Qxe8 {[%emt 0:00:03]} 47. Rxd8 {[%emt 0:00:02]} Qxd8 {[%emt 0:00:01]} 48. Qc6 {[%emt 0:00:03]} Qf6 {[%emt 0:00:02]} 49. Qe4 {[%emt 0:00:03]} Rb4 {[%emt 0:00:01]} 50. Qe3 {[%emt 0:00:06]} Rxa4 {[%emt 0:00:02]} 51. Qxb6 {[%emt 0:00:01]} e4 {[%emt 0:00:03]} 52. Qe3 {[%emt 0:00:03]} Rb4 {[%emt 0:00:02]} 53. Nd6 {[%emt 0:00:04]} Qe5 {[%emt 0:00:03]} 54. Rd1 {[%emt 0:00:03]} a4 {[%emt 0:00:02]} 55. Qd2 {[%emt 0:00:07]} Rb2 {[%emt 0:00:03]} 56. Qd4 {[%emt 0:00:03]} Qh5 {[%emt 0:00:08]} 57. Nxe4 {[%emt 0:00:05]} a3 {[%emt 0:00:05]} 58. Rc1 {[%emt 0:00:02]} Rb8 {[%emt 0:00:05]} 59. Qd6 {[%emt 0:00:02]} Rf8 {[%emt 0:00:02]} 60. Qxa3 {[%emt 0:00:02]} Qf5 {[%emt 0:00:01]} 61. Qe3 {[%emt 0:00:01]} Qh3 {[%emt 0:00:01]} 62. Re1 {[%emt 0:00:01]} Rf5 {[%emt 0:00:03]} 63. Ng5 {[%emt 0:00:01]} Qh6 {[%emt 0:00:02]} 64. Qxe6+ {[%emt 0:00:01]} Qxe6 {[%emt 0:00:01]} 65. Nxe6 {[%emt 0:00:01]} g5 {[%emt 0:00:02]} 66. Kg2 {[%emt 0:00:01]} g4 {[%emt 0:00:01]} 67. Nf4 {[%emt 0:00:01]} 1-0

[Event "FIDE Womens World Cup 2021"]
[Site "Sochi"]
[Date "2021.07.17"]
[Round "2.7"]
[White "Badelka, Olga"]
[Black "Matnadze, Ana"]
[Result "0-1"]
[ECO "D35"]
[WhiteElo "2418"]
[BlackElo "2421"]
[Annotator "NA"]
[PlyCount "85"]
[EventDate "2021.07.12"]
[EventType "k.o."]
[EventCountry "RUS"]
[SourceTitle "playchess.com"]
[Source "ChessBase"]
[SourceQuality "1"]
[TimeControl "300+3"]

1. d4 {[%emt 0:00:02]} Nf6 {[%emt 0:00:01]} 2. c4 {[%emt 0:00:00]} e6 {[%emt 0:00:01]} 3. Nc3 {[%emt 0:00:01]} d5 {[%emt 0:00:01]} 4. cxd5 {[%emt 0:00:01]} exd5 {[%emt 0:00:01]} 5. Bg5 {[%emt 0:00:01]} c6 {[%emt 0:00:01]} 6. e3 {[%emt 0:00:01]} Nbd7 {[%emt 0:00:02]} 7. Bd3 {[%emt 0:00:02]} Be7 {[%emt 0:00:01]} 8. Qc2 {[%emt 0:00:01]} Nf8 {[%emt 0:00:02]} 9. Nge2 {[%emt 0:00:08]} Ne6 {[%emt 0:00:03]} 10. Bxf6 {[%emt 0:00:04]} Bxf6 {[%emt 0:00:02]} 11. O-O-O {[%emt 0:00:04]} b6 {[%emt 0:00:34]} 12. f4 {[%emt 0:00:05]} Bb7 {[%emt 0:00:03]} 13. g4 {[%emt 0:00:08]} c5 {[%emt 0:00:25]} 14. dxc5 {[%emt 0:01:01]} bxc5 {[%emt 0:00:26]} 15. Bb5+ {[%emt 0:00:13]} Kf8 {[%emt 0:00:01]} 16. g5 {[%emt 0:00:39]} Be7 {[%emt 0:00:20]} 17. Rhf1 {[%emt 0:00:13]} Qa5 {[%emt 0:00:32]} 18. Bd7 {[%emt 0:00:20]} Nc7 {[%emt 0:00:23]} 19. h4 {[%emt 0:00:22]} Rd8 {[%emt 0:00:03]} 20. Bh3 {[%emt 0:00:10]} Qb4 {[%emt 0:00:11]} 21. a3 {[%emt 0:00:19]} Qc4 {[%emt 0:00:03]} 22. f5 {[%emt 0:01:10]} Qxh4 {[%emt 0:00:20]} 23. f6 {[%emt 0:00:23]} Qxh3 {[%emt 0:00:20]} 24. fxe7+ {[%emt 0:00:01]} Kxe7 {[%emt 0:00:02]} 25. Nf4 {[%emt 0:00:09]} Qd7 {[%emt 0:01:13]} 26. Qf2 {[%emt 0:00:07]} Rhf8 {[%emt 0:00:17]} 27. Nh5 {[%emt 0:00:04]} Ne6 {[%emt 0:00:07]} 28. Nxg7 {[%emt 0:00:08]} Nxg7 29. Qf6+ Ke8 30. Qxg7 Qe7 {[%emt 0:00:35]} 31. Kb1 {[%emt 0:00:06]} Rd6 {[%emt 0:00:03]} 32. Nb5 {[%emt 0:00:24]} Rb6 {[%emt 0:00:07]} 33. Nc3 {[%emt 0:00:05]} Rg6 {[%emt 0:00:08]} 34. Qxh7 {[%emt 0:00:01]} Qe5 {[%emt 0:00:06]} 35. Qh4 {[%emt 0:00:08]} Bc6 {[%emt 0:00:03]} 36. e4 {[%emt 0:00:04]} Rh8 {[%emt 0:00:04]} 37. Qg4 {[%emt 0:00:03]} d4 {[%emt 0:00:07]} 38. Qc8+ {[%emt 0:00:03]} Ke7 {[%emt 0:00:00]} 39. Qa6 {[%emt 0:00:05]} Bxe4+ {[%emt 0:00:03]} 40. Nxe4 {[%emt 0:00:01]} Rxa6 {[%emt 0:00:01]} 41. Nf6 {[%emt 0:00:04]} Re6 {[%emt 0:00:04]} 42. Ka2 {[%emt 0:00:03]} Rh2 {[%emt 0:00:05]} 43. Rc1 0-1

[Event "FIDE Womens World Cup 2021"]
[Site "Sochi"]
[Date "2021.07.17"]
[Round "2.8"]
[White "Matnadze, Ana"]
[Black "Badelka, Olga"]
[Result "0-1"]
[ECO "A04"]
[WhiteElo "2421"]
[BlackElo "2418"]
[Annotator "NA"]
[PlyCount "90"]
[EventDate "2021.07.12"]
[EventType "k.o."]
[EventCountry "RUS"]
[SourceTitle "playchess.com"]
[Source "ChessBase"]
[SourceQuality "1"]
[TimeControl "300+3"]

1. Nf3 {[%emt 0:00:03]} c5 {[%emt 0:00:02]} 2. b3 {[%emt 0:00:03]} Nc6 {[%emt 0:00:07]} 3. e3 {[%emt 0:00:01]} e5 {[%emt 0:00:07]} 4. Bb2 {[%emt 0:00:02]} d6 {[%emt 0:00:02]} 5. d3 {[%emt 0:00:11]} f5 {[%emt 0:00:09]} 6. c4 {[%emt 0:00:04]} Nf6 {[%emt 0:00:02]} 7. Nc3 {[%emt 0:00:01]} Be7 {[%emt 0:00:04]} 8. Be2 {[%emt 0:00:03]} O-O {[%emt 0:00:03]} 9. a3 {[%emt 0:00:03]} h6 {[%emt 0:00:14]} 10. Qc2 {[%emt 0:00:03]} Be6 {[%emt 0:00:04]} 11. Nd2 {[%emt 0:00:13]} a6 {[%emt 0:00:05]} 12. Bf3 {[%emt 0:00:09]} Bf7 {[%emt 0:00:04]} 13. Nd5 {[%emt 0:00:06]} Nxd5 {[%emt 0:00:14]} 14. Bxd5 {[%emt 0:00:02]} Bxd5 {[%emt 0:00:01]} 15. cxd5 {[%emt 0:00:01]} Nb8 {[%emt 0:00:02]} 16. O-O {[%emt 0:00:17]} Nd7 {[%emt 0:00:03]} 17. a4 {[%emt 0:00:10]} b5 {[%emt 0:00:08]} 18. e4 {[%emt 0:00:31]} Bg5 {[%emt 0:00:11]} 19. Nf3 {[%emt 0:00:05]} fxe4 {[%emt 0:00:27]} 20. dxe4 {[%emt 0:00:01]} Bf4 {[%emt 0:00:01]} 21. axb5 {[%emt 0:00:09]} axb5 {[%emt 0:00:01]} 22. Qd3 {[%emt 0:00:03]} Qb6 {[%emt 0:00:31]} 23. g3 {[%emt 0:00:05]} Rxa1 {[%emt 0:00:12]} 24. Rxa1 {[%emt 0:00:03]} Bg5 {[%emt 0:00:02]} 25. Nxg5 {[%emt 0:00:09]} hxg5 {[%emt 0:00:02]} 26. Qe2 {[%emt 0:00:14]} Nf6 {[%emt 0:00:11]} 27. h3 {[%emt 0:00:09]} c4 {[%emt 0:00:33]} 28. bxc4 {[%emt 0:00:15]} bxc4 {[%emt 0:00:01]} 29. Bc1 {[%emt 0:00:13]} Nxe4 {[%emt 0:00:36]} 30. Be3 {[%emt 0:00:02]} Qb5 {[%emt 0:00:38]} 31. Rc1 {[%emt 0:00:10]} Qxd5 {[%emt 0:00:14]} 32. Qxc4 {[%emt 0:00:11]} Qxc4 {[%emt 0:00:01]} 33. Rxc4 {[%emt 0:00:02]} d5 {[%emt 0:00:05]} 34. Rc7 {[%emt 0:00:12]} d4 {[%emt 0:00:04]} 35. Bc1 {[%emt 0:00:15]} Nxf2 {[%emt 0:00:04]} 36. Ba3 {[%emt 0:00:14]} Rf3 {[%emt 0:00:16]} 37. Bd6 {[%emt 0:00:07]} Nd3 {[%emt 0:00:12]} 38. Kg2 {[%emt 0:00:37]} e4 {[%emt 0:00:07]} 39. Rc4 {[%emt 0:00:10]} Ne1+ {[%emt 0:00:05]} 40. Kg1 {[%emt 0:00:02]} Rd3 {[%emt 0:00:11]} 41. Rc7 {[%emt 0:00:14]} Nf3+ {[%emt 0:00:04]} 42. Kf2 {[%emt 0:00:06]} Rd2+ {[%emt 0:00:02]} 43. Kf1 {[%emt 0:00:02]} e3 {[%emt 0:00:02]} 44. Rc8+ {[%emt 0:00:07]} Kh7 {[%emt 0:00:04]} 45. Re8 {[%emt 0:00:04]} Rf2# {[%emt 0:00:02]} 0-1